fUSD/lending_fUSD_20250923
["ID","MTS","AMOUNT","RATE_DAILY","PERIOD"]
[387137530,1758588732407,-433.42,0.00023012,2]
[387137531,1758588732417,-577.66,0.00023012,2]
[387137532,1758588732427,-803.42,0.00023012,2]
[387137533,1758588732438,-651.06,0.00023012,2]
[387137534,1758588732448,-400.0,0.00023012,2]
[387137535,1758588732457,-414.87,0.00023012,2]
[387137536,1758588732467,-602.08,0.00023012,2]
[387137537,1758588732476,-400.0,0.00023012,2]
[387137538,1758588732485,-400.0,0.00023012,2]
[387137539,1758588732495,-697.68,0.00023012,2]
[387137540,1758588732504,-1169.47,0.00023012,2]
[387137541,1758588732513,-400.0,0.00023012,2]
[387137542,1758588732522,-514.36,0.00023012,2]
[387137543,1758588732532,-440.26,0.00023012,2]
[387137544,1758588732541,-593.88,0.00023012,2]
[387137545,1758588732551,-1060.97,0.00023012,2]
[387137546,1758588732561,-743.55,0.00023012,2]
[387137547,1758588732570,-620.51,0.00023012,2]
[387137548,1758588732580,-400.0,0.00023012,2]
[387137549,1758588732589,-695.32,0.00023012,2]
[387137550,1758588732599,-447.81,0.00023012,2]
[387137551,1758588732608,-909.99,0.00023012,2]
[387137552,1758588732618,-400.0,0.00023012,2]
[387137553,1758588732627,-400.0,0.00023012,2]
[387137554,1758588732638,-609.54,0.00023012,2]
[387137555,1758588732647,-400.0,0.00023012,2]
[387137556,1758588732657,-503.16,0.00023012,2]
[387137557,1758588732666,-652.42,0.00023012,2]
[387137558,1758588732676,-1926.15,0.00023012,2]
[387137559,1758588732688,-808.98,0.00023012,2]
[387137560,1758588732698,-997.93,0.00023012,2]
[387137561,1758588732707,-2763.9,0.00023012,2]
[387137562,1758588732717,-822.69,0.00023012,2]
[387137563,1758588732726,-1231.62,0.00023012,2]
[387137564,1758588732737,-435.88,0.00023012,2]
[387137565,1758588732746,-400.0,0.00023012,2]
[387137566,1758588732756,-1881.3,0.00023012,2]
[387137567,1758588732765,-400.0,0.00023012,2]
[387137568,1758588732774,-1082.02,0.00023012,2]
[387137569,1758588732784,-703.54,0.00023012,2]
[387137570,1758588732793,-471.61,0.00023012,2]
[387137571,1758588732803,-698.95,0.00023012,2]
[387137572,1758588732812,-422.43,0.00023012,2]
[387137573,1758588732822,-665.52,0.00023012,2]
[387137574,1758588732831,-1517.07,0.00023012,2]
[387137575,1758588732840,-1290.57,0.00023012,2]
[387137576,1758588732849,-599.8,0.00023012,2]
[387137577,1758588732859,-864.51,0.00023012,2]
[387137578,1758588732868,-700.22,0.00023012,2]
[387137579,1758588732877,-578.19,0.00023012,2]
[387137580,1758588732887,-1270.12,0.00023012,2]
[387137581,1758588732897,-529.42,0.00023012,2]
[387137582,1758588732906,-790.42,0.00023012,2]
[387137583,1758588732916,-546.07,0.00023012,2]
[387137584,1758588732925,-796.17,0.00023012,2]
[387137585,1758588732935,-1797.38,0.00023012,2]
[387137586,1758588732944,-1179.29,0.00023012,2]
[387137587,1758588732954,-1067.68,0.00023012,2]
[387137588,1758588732962,-685.94,0.00023012,2]
[387137589,1758588732971,-400.0,0.00023012,2]
[387137590,1758588732981,-400.0,0.00023012,2]
[387137591,1758588732991,-4410.79,0.00023012,2]
[387137592,1758588733000,-400.0,0.00023012,2]
[387137593,1758588733009,-400.0,0.00023012,2]
[387137594,1758588733018,-635.32,0.00023012,2]
[387137595,1758588733027,-825.39,0.00023012,2]
[387137596,1758588733036,-1159.17,0.00023012,2]
[387137597,1758588733047,-3621.17,0.00023012,2]
[387137598,1758588733056,-536.01,0.00023012,2]
[387137599,1758588733065,-1555.92,0.00023012,2]
[387137600,1758588733075,-685.82,0.00023012,2]
[387137601,1758588733084,-400.0,0.00023012,2]
[387137602,1758588733093,-1688.59,0.00023012,2]
[387137603,1758588733102,-533.54,0.00023012,2]
[387137604,1758588733114,-3199.7,0.00023012,2]
[387137605,1758588733124,-400.0,0.00023012,2]
[387137606,1758588733133,-5083.46,0.00023012,2]
[387137607,1758588733142,-532.7,0.00023012,2]
[387137608,1758588733152,-726.03,0.00023012,2]
[387137609,1758588733164,-1692.11,0.00023012,2]
[387137610,1758588733175,-633.11,0.00023012,2]
[387137611,1758588733187,-411.61,0.00023012,2]
[387137612,1758588733197,-648.3,0.00023012,2]
[387137613,1758588733211,-857.03,0.00023012,2]
[387137614,1758588733225,-722.01,0.00023012,2]
[387137615,1758588733234,-1108.24,0.00023012,2]
[387137616,1758588733244,-464.86,0.00023012,2]
[387137617,1758588733253,-2367.09,0.00023012,2]
[387137618,1758588733263,-400.0,0.00023012,2]
[387137619,1758588733272,-1636.84,0.00023012,2]
[387137620,1758588733283,-2136.91,0.00023012,2]
[387137621,1758588733299,-555.5,0.00023012,2]
[387137622,1758588733311,-914.0,0.00023012,2]
[387137623,1758588733321,-887.03,0.00023012,2]
[387137624,1758588733330,-4785.63,0.00023012,2]
[387137625,1758588733339,-1767.45,0.00023012,2]
[387137626,1758588733348,-1514.68,0.00023012,2]
[387137627,1758588733359,-553.9,0.00023012,2]
[387137628,1758588733368,-644.46,0.00023012,2]
[387137629,1758588733377,-434.59,0.00023012,2]
[387137630,1758588733387,-1093.45,0.00023012,2]
[387137631,1758588733396,-400.0,0.00023012,2]
[387137632,1758588733405,-2259.45,0.00023012,2]
[387137633,1758588733417,-1283.49,0.00023012,2]
[387137634,1758588733427,-579.07,0.00023012,2]
[387137635,1758588733438,-1392.04,0.00023012,2]
[387137636,1758588733447,-400.0,0.00023012,2]
[387137637,1758588733457,-586.63,0.00023012,2]
[387137638,1758588733467,-852.34,0.00023012,2]
[387137639,1758588733476,-400.0,0.00023012,2]
[387137640,1758588733486,-602.29,0.00023012,2]
[387137641,1758588733495,-2120.46,0.00023012,2]
[387137642,1758588733504,-400.0,0.00023012,2]
[387137643,1758588733514,-730.17,0.00023012,2]
[387137644,1758588733523,-713.11,0.00023012,2]
[387137645,1758588733532,-824.24,0.00023012,2]
[387137646,1758588733542,-2178.93,0.00023012,2]
[387137647,1758588733551,-563.68,0.00023012,2]
[387137648,1758588733559,-400.0,0.00023012,2]
[387137649,1758588733569,-624.27,0.00023012,2]
[387137650,1758588733579,-1279.8,0.00023012,2]
[387137651,1758588733589,-400.0,0.00023012,2]
[387137652,1758588733598,-3000.0,0.00023012,2]
[387137653,1758588733608,-400.0,0.00023013,2]
[387137654,1758588733619,-400.0,0.00023013,2]
[387137655,1758588733628,-400.0,0.00023013,2]
[387137656,1758588733638,-400.0,0.00023013,2]
[387137657,1758588733647,-400.0,0.00023013,2]
[387137658,1758588733657,-400.0,0.00023013,2]
[387137659,1758588733666,-400.0,0.00023013,2]
[387137660,1758588733675,-400.0,0.00023013,2]
[387137661,1758588733684,-555.17,0.00023013,2]
[387137662,1758588733693,-491.16,0.00023013,2]
[387137663,1758588733702,-400.0,0.00023013,2]
[387137664,1758588733711,-400.0,0.00023013,2]
[387137665,1758588733720,-400.0,0.00023013,2]
[387137666,1758588733730,-416.06,0.00023013,2]
[387137667,1758588733739,-439.92,0.00023013,2]
[387137668,1758588733748,-400.0,0.00023013,2]
[387137669,1758588733758,-428.44,0.00023013,2]
[387137670,1758588733767,-400.0,0.00023013,2]
[387137671,1758588733776,-400.0,0.00023013,2]
[387137672,1758588733785,-400.0,0.00023013,2]
[387137673,1758588733795,-400.0,0.00023013,2]
[387137674,1758588733804,-431.28,0.00023013,2]
[387137675,1758588733813,-754.63,0.00023013,2]
[387137676,1758588733823,-403.38,0.00023013,2]
[387137677,1758588733832,-917.82,0.00023013,2]
[387137678,1758588733841,-400.0,0.00023013,2]
[387137679,1758588733850,-504.07,0.00023013,2]
[387137680,1758588733859,-535.33,0.00023013,2]
[387137681,1758588733869,-414.45,0.00023013,2]
[387137682,1758588733878,-597.93,0.00023013,2]
[387137683,1758588733888,-400.0,0.00023013,2]
[387137684,1758588733898,-599.79,0.00023013,2]
[387137685,1758588733908,-512.84,0.00023013,2]
[387137686,1758588733917,-379.77,0.00023013,2]
[387137687,1758588733927,-830.32,0.00023013,2]
[387137688,1758588733940,-400.0,0.00023013,2]
[387137689,1758588733950,-400.0,0.00023013,2]
[387137690,1758588733959,-400.0,0.00023013,2]
[387137691,1758588733968,-877.74,0.00023013,2]
[387137692,1758588733977,-454.04,0.00023013,2]
[387137693,1758588733986,-944.31,0.00023013,2]
[387137694,1758588733995,-400.0,0.00023013,2]
[387137695,1758588734005,-866.7,0.00023013,2]
[387137696,1758588734015,-400.0,0.00023013,2]
[387137697,1758588734024,-983.28,0.00023013,2]
[387137698,1758588734033,-400.0,0.00023013,2]
[387137699,1758588734043,-722.94,0.00023013,2]
[387137700,1758588734052,-400.0,0.00023013,2]
[387137701,1758588734063,-542.91,0.00023013,2]
[387137702,1758588734078,-400.0,0.00023013,2]
[387137703,1758588734087,-559.02,0.00023013,2]
[387137704,1758588734096,-531.68,0.00023013,2]
[387137705,1758588734108,-400.0,0.00023013,2]
[387137706,1758588734119,-682.63,0.00023013,2]
[387137707,1758588734128,-400.0,0.00023013,2]
[387137708,1758588734137,-461.64,0.00023013,2]
[387137709,1758588734148,-400.0,0.00023013,2]
[387137710,1758588734157,-671.51,0.00023013,2]
[387137711,1758588734167,-404.72,0.00023013,2]
[387137712,1758588734176,-607.71,0.00023013,2]
[387137713,1758588734188,-400.0,0.00023013,2]
[387137714,1758588734197,-400.0,0.00023013,2]
[387137715,1758588734207,-421.51,0.00023013,2]
[387137716,1758588734216,-965.94,0.00023013,2]
[387137717,1758588734226,-596.18,0.00023013,2]
[387137718,1758588734242,-400.0,0.00023013,2]
[387137719,1758588734252,-400.0,0.00023013,2]
[387137720,1758588734266,-417.6,0.00023013,2]
[387137721,1758588734277,-779.83,0.00023013,2]
[387137722,1758588734287,-400.0,0.00023013,2]
[387137723,1758588734297,-400.0,0.00023013,2]
[387137724,1758588734306,-720.23,0.00023013,2]
[387137725,1758588734316,-400.0,0.00023013,2]
[387137726,1758588734326,-432.08,0.00023013,2]
[387137727,1758588734335,-926.5,0.00023013,2]
[387137728,1758588734345,-373.53,0.00023013,2]
[387137729,1758588734354,-453.42,0.00023013,2]
[387137730,1758588734364,-400.0,0.00023013,2]
[387137731,1758588734374,-499.27,0.00023013,2]
[387137732,1758588734558,-415.36,0.00023013,2]
[387137733,1758588734584,-400.0,0.00023013,2]
[387137734,1758588734595,-1064.17,0.00023013,2]
[387137735,1758588734607,-400.0,0.00023013,2]
[387137736,1758588734616,-400.0,0.00023013,2]
[387137737,1758588734625,-400.0,0.00023013,2]
[387137738,1758588734635,-428.67,0.00023013,2]
[387137739,1758588734644,-427.84,0.00023013,2]
[387137740,1758588734654,-400.0,0.00023013,2]
[387137741,1758588734663,-400.0,0.00023013,2]
[387137742,1758588734673,-715.39,0.00023013,2]
[387137743,1758588734683,-515.86,0.00023013,2]
[387137744,1758588734692,-400.0,0.00023013,2]
[387137745,1758588734702,-400.0,0.00023013,2]
[387137746,1758588734711,-1049.53,0.00023013,2]
[387137747,1758588734721,-400.0,0.00023013,2]
[387137748,1758588734730,-400.0,0.00023013,2]
[387137749,1758588734739,-669.85,0.00023013,2]
[387137750,1758588734749,-524.43,0.00023013,2]
[387137751,1758588734758,-480.73,0.00023013,2]
[387137752,1758588734767,-418.66,0.00023013,2]
[387137753,1758588734777,-400.0,0.00023013,2]
[387137754,1758588734787,-645.11,0.00023013,2]
[387137755,1758588734796,-3259.34,0.00023013,2]
[387137756,1758588734806,-400.0,0.00023013,2]
[387137757,1758588734815,-400.0,0.00023013,2]
[387137758,1758588734825,-819.08,0.00023013,2]
[387137759,1758588734835,-521.7,0.00023013,2]
[387137760,1758588734844,-398.46522476,0.00023013,2]
[387137761,1758588734853,-527.41,0.00023013,2]
[387137762,1758588734863,-400.0,0.00023013,2]
[387137763,1758588734872,-707.11,0.00023013,2]
[387137764,1758588734881,-4823.52,0.00023013,2]
[387137765,1758588734890,-1811.93,0.00023013,2]
[387137766,1758588734899,-658.31,0.00023013,2]
[387137767,1758588734909,-1161.68,0.00023013,2]
[387137768,1758588734918,-751.69,0.00023013,2]
[387137769,1758588734927,-532.84,0.00023013,2]
[387137770,1758588734938,-760.3,0.00023013,2]
[387137771,1758588734947,-427.52,0.00023013,2]
[387137772,1758588734957,-400.0,0.00023013,2]
[387137773,1758588734966,-450.15,0.00023013,2]
[387137774,1758588734975,-500.42,0.00023013,2]
[387137775,1758588734985,-535.91,0.00023013,2]
[387137776,1758588734994,-440.64,0.00023013,2]
[387137777,1758588735004,-839.22,0.00023013,2]
[387137778,1758588735013,-1017.53,0.00023013,2]
[387137779,1758588735022,-400.0,0.00023013,2]
[387137780,1758588735031,-9183.84,0.00023013,2]
[387137781,1758588735040,-400.0,0.00023013,2]
[387137782,1758588735050,-400.0,0.00023013,2]
[387137783,1758588735059,-451.23,0.00023013,2]
[387137784,1758588735068,-400.0,0.00023013,2]
[387137785,1758588735078,-894.16,0.00023013,2]
[387137786,1758588735087,-683.2,0.00023013,2]
[387137787,1758588735096,-1123.88,0.00023013,2]
[387137788,1758588735107,-406.45,0.00023013,2]
[387137789,1758588735117,-1005.19,0.00023013,2]
[387137790,1758588735126,-808.52,0.00023013,2]
[387137791,1758588735136,-1110.73,0.00023013,2]
[387137792,1758588735147,-400.0,0.00023013,2]
[387137793,1758588735156,-1205.76,0.00023013,2]
[387137794,1758588735165,-400.0,0.00023013,2]
[387137795,1758588735174,-741.22,0.00023013,2]
[387137796,1758588735185,-164.0,0.00023014,7]
[387137797,1758588735195,-400.0,0.00023014,2]
[387137798,1758588735205,-7141.99171587,0.00023016,2]
[387137799,1758588735214,-299.82602271,0.00023019,2]
[387137800,1758588735223,-299.82602271,0.00023019,2]
[387137801,1758588735232,-500.0,0.00023021,2]
[387137802,1758588735241,-4135.60108423,0.00023021,2]
[387137803,1758588735250,-4135.60108423,0.00023021,2]
[387137804,1758588735259,-299.82602271,0.00023027,2]
[387137805,1758588735268,-2904.33091898,0.00023029,2]
[387137806,1758588735278,-299.82602271,0.00023033,2]
[387137807,1758588735287,-177.43200002,0.00023035,2]
[387137808,1758588735297,-743.40737144,0.00023036,2]
[387137809,1758588735306,-168.0,0.00023042,2]
[387137810,1758588735315,-7141.99171587,0.00023051,2]
[387137811,1758588735325,-1425.0,0.00023051,2]
[387137812,1758588735334,-1425.0,0.00023052,2]
[387137813,1758588735344,-177.43200002,0.00023054,2]
[387137814,1758588735353,-743.40737144,0.00023062,2]
[387137815,1758588735362,-1947.14514989,0.00023063,2]
[387137816,1758588735372,-2500.0,0.00023064,2]
[387137817,1758588735381,-594.51878191,0.00023064,2]
[387137818,1758588735391,-177.43200002,0.00023065,2]
[387137819,1758588735401,-4263.21640132,0.00023068,2]
[387137820,1758588735410,-743.40737144,0.00023068,2]
[387137821,1758588735419,-4135.60108423,0.00023069,2]
[387137822,1758588735429,-252.0,0.0002307,2]
[387137823,1758588735438,-299.82602271,0.00023071,2]
[387137824,1758588735447,-803.5,0.00023075,2]
[387137825,1758588735456,-299.82602271,0.00023078,2]
[387137826,1758588735465,-743.40737144,0.00023079,2]
[387137827,1758588735474,-3454.3596677,0.00023081,2]
[387137828,1758588735483,-177.43200002,0.0002309,2]
[387137829,1758588735492,-177.43200002,0.00023093,2]
[387137830,1758588735502,-2904.33091898,0.00023094,2]
[387137831,1758588735511,-2904.33091898,0.00023097,2]
[387137832,1758588735520,-2543.82276084,0.000231,2]
[387137833,1758588735529,-638.863,0.000231,2]
[387137834,1758588735539,-5514.0,0.000231,5]
[387137835,1758588735548,-4263.21640132,0.00023101,2]
[387137836,1758588735557,-743.40737144,0.00023108,2]
[387137837,1758588735566,-177.43200002,0.00023113,2]
[387137838,1758588735575,-1947.14514989,0.00023115,2]
[387137839,1758588735584,-1947.14514989,0.00023117,2]
[387137840,1758588735593,-4135.60108423,0.00023124,2]
[387137841,1758588735603,-7141.99171587,0.00023124,2]
[387137842,1758588735613,-743.40737144,0.00023125,2]
[387137843,1758588735623,-743.40737144,0.00023126,2]
[387137844,1758588735632,-1947.14514989,0.00023128,2]
[387137845,1758588735642,-2904.33091898,0.00023131,2]
[387137846,1758588735651,-4135.60108423,0.00023133,2]
[387137847,1758588735660,-177.43200002,0.00023137,2]
[387137848,1758588735669,-4135.60108423,0.0002314,2]
[387137849,1758588735678,-4263.21640132,0.00023141,2]
[387137850,1758588735687,-7141.99171587,0.00023141,2]
[387137851,1758588735697,-4263.21640132,0.00023147,2]
[387137852,1758588735706,-1947.14514989,0.00023149,2]
[387137853,1758588735715,-7141.99171587,0.0002315,2]
[387137854,1758588735724,-299.82602271,0.00023151,2]
[387137855,1758588735734,-150.0,0.00023154,2]
[387137856,1758588735743,-7141.99171587,0.00023158,2]
[387137857,1758588735752,-4263.21640132,0.00023165,2]
[387137858,1758588735761,-2904.33091898,0.00023167,2]
[387137859,1758588735771,-4135.60108423,0.00023172,2]
[387137860,1758588735779,-1147.07646305,0.00023174,2]
[387137861,1758588735790,-150.0,0.00023177,2]
[387137862,1758588735798,-1947.14514989,0.00023179,2]
[387137863,1758588735807,-4263.21640132,0.00023179,2]
[387137864,1758588735816,-2904.33091898,0.00023185,2]
[387137865,1758588735825,-1947.14514989,0.00023185,2]
[387137866,1758588735835,-4263.21640132,0.00023186,2]
[387137867,1758588735844,-2904.33091898,0.00023193,2]
[387137868,1758588735853,-7141.99171587,0.00023199,2]
[387137869,1758588735862,-51322.46524196,0.000232,2]
[387137870,1758588735872,-600.0,0.00023206,2]
[387137871,1758588735881,-356.5,0.00023224,2]
[387137872,1758588735891,-267.57787126,0.00023237,7]
[387137873,1758588735902,-1000.0,0.00023244,2]
[387137874,1758588735912,-400.0,0.0002328,2]
[387137875,1758588735922,-338.67845887,0.00023281,2]
[387137876,1758588735933,-222.68140747,0.00023281,2]
[387137877,1758588735943,-250.0,0.00023281,2]
[387137878,1758588735952,-500.0,0.00023281,2]
[387137879,1758588735962,-1741.0,0.00023281,2]
[387137880,1758588735971,-496.0,0.00023281,2]
[387137881,1758588735980,-500.0,0.00023281,2]
[387137882,1758588735989,-539.0,0.00023281,2]
[387137883,1758588735998,-400.0,0.00023281,2]
[387137884,1758588736009,-553.8,0.00023281,2]
[387137885,1758588736019,-400.0,0.00023281,2]
[387137886,1758588736028,-400.0,0.00023281,2]
[387137887,1758588736038,-739.8,0.00023281,2]
[387137888,1758588736047,-631.13,0.00023281,2]
[387137889,1758588736057,-400.0,0.00023281,2]
[387137890,1758588736066,-400.0,0.00023281,2]
[387137891,1758588736075,-400.0,0.00023281,2]
[387137892,1758588736085,-548.43,0.00023281,2]
[387137893,1758588736095,-400.0,0.00023281,2]
[387137894,1758588736107,-455.09,0.00023281,2]
[387137895,1758588736120,-400.0,0.00023284,2]
[387137896,1758588736130,-445.49,0.00023285,2]
[387137897,1758588736139,-433.86,0.00023285,2]
[387137898,1758588736149,-400.0,0.00023285,2]
[387137899,1758588736158,-400.0,0.00023285,2]
[387137900,1758588736167,-400.0,0.00023285,2]
[387137901,1758588736176,-400.0,0.00023285,2]
[387137902,1758588736185,-400.0,0.00023285,2]
[387137903,1758588736196,-417.58,0.00023285,2]
[387137904,1758588736206,-400.0,0.00023285,2]
[387137905,1758588736215,-400.0,0.00023285,2]
[387137906,1758588736224,-400.0,0.00023285,2]
[387137907,1758588736234,-400.0,0.00023285,2]
[387137908,1758588736243,-400.0,0.00023285,2]
[387137909,1758588736252,-729.73,0.00023285,2]
[387137910,1758588736262,-400.0,0.00023285,2]
[387137911,1758588736271,-1262.42,0.00023285,2]
[387137912,1758588736280,-400.0,0.00023285,2]
[387137913,1758588736289,-402.51,0.00023285,2]
[387137914,1758588736298,-796.01,0.00023285,2]
[387137915,1758588736308,-431.35,0.00023285,2]
[387137916,1758588736317,-2335.81,0.00023285,2]
[387137917,1758588736327,-1029.46,0.00023285,2]
[387137918,1758588736336,-465.65,0.00023285,2]
[387137919,1758588736346,-400.0,0.00023285,2]
[387137920,1758588736356,-1832.67,0.00023285,2]
[387137921,1758588736365,-1616.25,0.00023285,2]
[387137922,1758588736374,-400.0,0.00023285,2]
[387137923,1758588736384,-400.0,0.00023285,2]
[387137924,1758588736393,-836.01,0.00023285,2]
[387137925,1758588736403,-400.0,0.00023285,2]
[387137926,1758588736412,-400.0,0.00023285,2]
[387137927,1758588736422,-400.0,0.00023285,2]
[387137928,1758588736431,-400.0,0.00023285,2]
[387137929,1758588736440,-1061.09,0.00023285,2]
[387137930,1758588736449,-522.0,0.00023285,2]
[387137931,1758588736458,-400.0,0.00023285,2]
[387137932,1758588736469,-3384.62,0.00023285,2]
[387137933,1758588736478,-2060.76,0.00023285,2]
[387137934,1758588736487,-530.11,0.00023285,2]
[387137935,1758588736497,-530.0,0.00023285,2]
[387137936,1758588736507,-922.13,0.00023285,2]
[387137937,1758588736517,-400.0,0.00023285,2]
[387137938,1758588736530,-754.65,0.00023285,2]
[387137939,1758588736539,-400.0,0.00023285,2]
[387137940,1758588736549,-508.94,0.00023285,2]
[387137941,1758588736558,-400.0,0.00023285,2]
[387137942,1758588736568,-1169.65,0.00023285,2]
[387137943,1758588736578,-1903.352168,0.00023285,2]
[387137944,1758588736587,-400.0,0.00023286,2]
[387137945,1758588736597,-400.0,0.00023286,2]
[387137946,1758588736606,-400.0,0.00023286,2]
[387137947,1758588736615,-400.0,0.00023286,2]
[387137948,1758588736625,-674.13,0.00023286,2]
[387137949,1758588736634,-400.0,0.00023286,2]
[387137950,1758588736644,-490.65,0.00023286,2]
[387137951,1758588736653,-242.73,0.00023286,2]
[387137952,1758588736662,-410.63,0.00023286,2]
[387137953,1758588736672,-298.48,0.00023286,2]
[387137954,1758588736681,-750.91,0.00023286,2]
[387137955,1758588736692,-554.46,0.00023286,2]
[387137956,1758588736702,-544.47,0.00023286,2]
[387137957,1758588736712,-859.26,0.00023286,2]
[387137958,1758588736721,-400.0,0.00023286,2]
[387137959,1758588736731,-660.35,0.00023286,2]
[387137960,1758588736740,-410.37,0.00023286,2]
[387137961,1758588736750,-1016.77,0.00023286,2]
[387137962,1758588736759,-400.0,0.00023286,2]
[387137963,1758588736769,-484.13,0.00023286,2]
[387137964,1758588736779,-682.51,0.00023286,2]
[387137965,1758588736789,-400.0,0.00023286,2]
[387137966,1758588736800,-588.84,0.00023286,2]
[387137967,1758588736810,-527.41,0.00023286,2]
[387137968,1758588736819,-769.14,0.00023286,2]
[387137969,1758588736829,-400.0,0.00023286,2]
[387137970,1758588736839,-400.0,0.00023286,2]
[387137971,1758588736848,-450.01,0.00023286,2]
[387137972,1758588736857,-265.79008471,0.00023286,2]
[387137973,1758588736867,-495.05,0.00023286,2]
[387137974,1758588736877,-400.0,0.00023286,2]
[387137975,1758588736887,-593.36,0.00023286,2]
[387137976,1758588736896,-445.15,0.00023286,2]
[387137977,1758588736906,-769.03,0.00023286,2]
[387137978,1758588736915,-537.23,0.00023286,2]
[387137979,1758588736924,-400.0,0.00023286,2]
[387137980,1758588736934,-390.18,0.00023286,2]
[387137981,1758588736943,-400.0,0.00023286,2]
[387137982,1758588736953,-1440.81,0.00023286,2]
[387137983,1758588736962,-2249.616654,0.00023286,2]
[387137984,1758588736971,-400.0,0.00023286,2]
[387137985,1758588736981,-501.01,0.00023286,2]
[387137986,1758588736990,-493.6,0.00023286,2]
[387137987,1758588737000,-400.0,0.00023286,2]
[387137988,1758588737010,-969.65,0.00023286,2]
[387137989,1758588737020,-433.42,0.00023286,2]
[387137990,1758588737030,-577.66,0.00023286,2]
[387137991,1758588737040,-803.42,0.00023286,2]
[387137992,1758588737049,-651.06,0.00023286,2]
[387137993,1758588737059,-414.87,0.00023286,2]
[387137994,1758588737068,-602.08,0.00023286,2]
[387137995,1758588737078,-400.0,0.00023286,2]
[387137996,1758588737088,-400.0,0.00023286,2]
[387137997,1758588737099,-697.68,0.00023286,2]
[387137998,1758588737113,-1169.47,0.00023286,2]
[387137999,1758588737123,-400.0,0.00023286,2]
[387138000,1758588737132,-514.36,0.00023286,2]
[387138001,1758588737142,-440.26,0.00023286,2]
[387138002,1758588737153,-593.88,0.00023286,2]
[387138003,1758588737163,-1060.97,0.00023286,2]
[387138004,1758588737172,-743.55,0.00023286,2]
[387138005,1758588737187,-620.51,0.00023286,2]
[387138006,1758588737197,-400.0,0.00023286,2]
[387138007,1758588737207,-695.32,0.00023286,2]
[387138008,1758588737218,-447.81,0.00023286,2]
[387138009,1758588737228,-909.99,0.00023286,2]
[387138010,1758588737238,-200.68,0.00023286,2]
[387138011,1758588737247,-400.0,0.00023286,2]
[387138012,1758588737256,-609.54,0.00023286,2]
[387138013,1758588737265,-400.0,0.00023286,2]
[387138014,1758588737274,-503.16,0.00023286,2]
[387138015,1758588737286,-652.42,0.00023286,2]
[387138016,1758588737296,-1926.15,0.00023286,2]
[387138017,1758588737305,-808.98,0.00023286,2]
[387138018,1758588737315,-997.93,0.00023286,2]
[387138019,1758588737325,-2763.9,0.00023286,2]
[387138020,1758588737334,-822.69,0.00023286,2]
[387138021,1758588737344,-1231.62,0.00023286,2]
[387138022,1758588737353,-435.88,0.00023286,2]
[387138023,1758588737362,-400.0,0.00023286,2]
[387138024,1758588737371,-1881.3,0.00023286,2]
[387138025,1758588737381,-400.0,0.00023286,2]
[387138026,1758588737390,-1082.02,0.00023286,2]
[387138027,1758588737400,-703.54,0.00023286,2]
[387138028,1758588737410,-471.61,0.00023286,2]
[387138029,1758588737420,-698.95,0.00023286,2]